Cogmind - Beta 14 @@@ ROGUE MODE // 2024.10.11 @ 20:38:05 Player: LEWiKK Result: Destroyed by Dirty Bomb Trap Performance ------------- Evolutions (6) 3000 Regions Visited (21) 4200 Robots Destroyed (126) 630 Value Destroyed (5650) 5650 Prototype IDs (45) 900 Alien Tech Used (2) 400 Bonus (4657) 4657 TOTAL SCORE: 19437 Bonus ------- High Alert Combat Kills 12 Follower Combat Kills 787 Entered DSFs 500 Aligned with FarCom 300 Acquired ECA 300 Met Zhirov 300 Met Warlord at Base 500 MAIN.C Attacked Warlord 500 Warlord Defense Kills 1458 Cogmind --------- Core Integrity 0/1150 Matter 289/300 Energy 99/100 System Corruption 3% Temperature Cool (0) Movement Core (50) Location -4/Warlord Parts ------- > --- POWER (1) -------- (None) > --- PROPULSION (4) --- (None) > --- UTILITY (9) ------ (None) > --- WEAPON (5) ------- (None) > --- INVENTORY (5) ---- Matter Filter Improved Kinecellerator Graphene Brace Dimensional Node Initializer Improved KE Penetrator Peak State ------------ > --- POWER ------------ Fusion Reactor > --- PROPULSION ------- Armored Treads Medium Treads Medium Treads Armored Medium Treads > --- UTILITY ---------- Large Storage Unit Advanced Signal Interpreter Encrypted Comm Array Improved Targeting Computer Advanced Targeting Computer Target Analyzer Advanced Kinecellerator Layered Medium Armor Plating Layered Medium Armor Plating > --- WEAPON ----------- Vortex Rail Coil Gun Improved KE Penetrator Helical Railgun > --- INVENTORY -------- Light Fission Core Light Fission Core Advanced Power Amplifier Experimental Targeting Computer Matter Filter Improved Kinecellerator Graphene Brace Recalibrator Dimensional Node Initializer Transdimensional Reconstructor Coil Gun Improved KE Penetrator Tiamat Missile Launcher Improved Remote Datajack [Rating: 101] Favorites ----------- Power Fusion Reactor Engine Reinforced Deuterium Engine Power Core Light Fission Core Reactor Fusion Reactor Propulsion Armored Treads Treads Armored Treads Leg Aluminum Leg Utility Large Storage Unit Device Encrypted Comm Array Storage Large Storage Unit Processor Targeting Computer Protection Layered Light Armor Plating Weapon Heavy Machine Gun Energy Gun EM Pulse Gun Energy Cannon Beam Cannon Ballistic Gun Heavy Machine Gun Ballistic Cannon Heavy Mass Driver Launcher Heavy Missile Launcher Special Weapon Improved Remote Datajack Impact Weapon Power Maul Slashing Weapon Falx Build | -11 -10 -10 -10 -9 -8 -7 -7 -6 -6 -6 -6 -5 -5 -5 -5 -5 -4 -4 -4 -4 -4 ------- Run | Yrd Mat Min Exi Min Mat Fac DSF Fac Low Low Zio Pro Fac Upp Upp Zhi Pro Fac Upp Upp War Slots Evolved 12 | . . . . . 4 2 . 2 . . . . 2 . . . . 2 . . . Power . | . . . . . . . . . . . . . . . . . . . . . . Propulsion 2 | . . . . . 1 . . . . . . . 1 . . . . . . . . Utility 7 | . . . . . 2 1 . 1 . . . . 1 . . . . 2 . . . Weapon 3 | . . . . . 1 1 . 1 . . . . . . . . . . . . . Parts Attached 108 | . 4 4 2 . 5 2 4 12 4 . 4 3 13 4 7 4 7 7 1 4 17 Power 8 | . . 1 . . . . . 1 . . . . 1 1 2 1 . . . . 1 Engine 2 | . . 1 . . . . . 1 . . . . . . . . . . . . . Core 5 | . . . . . . . . . . . . . 1 1 2 . . . . . 1 Reactor 1 | . . . . . . . . . . . . . . . . 1 . . . . . Propulsion 19 | . 2 . . . 1 . 4 2 . . . . 4 . 1 . . 2 . . 3 Treads 19 | . 2 . . . 1 . 4 2 . . . . 4 . 1 . . 2 . . 3 Leg . | . . . . . . . . . . . . . . . . . . . . . . Wheel . | . . . . . . . . . . . . . . . . . . . . . . Hover . | . . . . . . . . . . . . . . . . . . . . . . Flight . | . . . . . . . . . . . . . . . . . . . . . . Utility 41 | . 1 1 1 . 3 1 . 5 4 . 2 . 3 2 2 3 2 3 1 2 5 Device 19 | . 1 1 . . . . . 2 2 . 1 . 1 2 2 2 1 1 1 . 2 Storage 1 | . . . . . 1 . . . . . . . . . . . . . . . . Processor 7 | . . . . . 1 . . 2 1 . . . . . . . . . . 2 1 Hackware . | . . . . . . . . . . . . . . . . . . . . . . Protection 14 | . . . 1 . 1 1 . 1 1 . 1 . 2 . . 1 1 2 . . 2 Artifact . | . . . . . . . . . . . . . . . . . . . . . . Weapon 40 | . 1 2 1 . 1 1 . 4 . . 2 3 5 1 2 . 5 2 . 2 8 Energy Gun 4 | . 1 . . . . . . . . . . . . . . . . . . . 3 Energy Cannon 1 | . . 1 . . . . . . . . . . . . . . . . . . . Ballistic Gun 26 | . . 1 1 . 1 1 . 3 . . . 3 5 1 . . 4 2 . 1 3 Ballistic Cannon 1 | . . . . . . . . . . . . . . . 1 . . . . . . Launcher 3 | . . . . . . . . . . . . . . . 1 . 1 . . . 1 Special Weapon 2 | . . . . . . . . . . . . . . . . . . . . 1 1 Impact Weapon 1 | . . . . . . . . 1 . . . . . . . . . . . . . Slashing Weapon 2 | . . . . . . . . . . . 2 . . . . . . . . . . Piercing Weapon . | . . . . . . . . . . . . . . . . . . . . . . Special Melee Weapon . | . . . . . . . . . . . . . . . . . . . . . . Unidentified Prototypes 13 | . . . . . . 1 . . . . 1 . . . . 4 1 1 . . 5 Parts Lost 41 | . . . . . . . 1 1 . . . . 10 1 6 . 4 1 . 3 14 Power 5 | . . . . . . . . . . . . . 1 . 2 . . . . . 2 Propulsion 11 | . . . . . . . . . . . . . 3 . 2 . 1 . . 1 4 Utility 11 | . . . . . . . 1 1 . . . . 1 . 1 . 1 1 . 2 3 Weapon 14 | . . . . . . . . . . . . . 5 1 1 . 2 . . . 5 Highest Loss Streak 12 | . . . . . . . 1 1 . . . . 5 1 6 . 2 1 . 2 12 To Critical Strikes . | . . . . . . . . . . . . . . . . . . . . . . Average Slot Usage (%) 89 | . 91 100 95 85 90 92 90 84 92 93 93 99 95 93 82 82 79 83 94 88 87 Engine 4 | . 14 14 14 14 9 7 7 6 6 6 6 6 2 . . . . . . . . Reactor 1 | . . . . . . . . . . . . . . . . 1 5 5 5 5 4 Treads 18 | . 19 28 28 28 27 23 23 20 20 20 20 20 22 23 17 17 11 10 21 15 14 Device 7 | . 6 14 10 . . . . 3 6 6 6 6 8 11 11 8 8 12 10 10 9 Storage 6 | . 14 14 14 14 9 7 7 6 6 6 6 6 5 5 5 5 5 5 5 5 4 Processor 15 | . . . . . 9 7 7 11 20 20 20 20 17 17 17 17 17 15 15 18 20 Protection 8 | . . . 3 14 18 23 21 9 4 6 6 6 7 5 5 7 7 11 15 11 9 Ballistic Gun 16 | . 14 14 14 14 18 23 23 20 20 20 20 25 18 17 11 11 14 14 15 14 14 Ballistic Cannon 2 | . . . . . . . . . . . . . . . 4 5 5 5 5 5 4 Impact Weapon 1 | . . . . . . . . 4 6 6 2 . . . . . . . . . . Slashing Weapon 1 | . . . . . . . . . . . 3 6 5 4 . . . . . . . Peak Build Rating 101 | . 7 11 23 23 29 32 41 66 65 65 75 66 72 72 74 81 81 92 92 90 101 Average Rating 63 | . 6 8 14 22 28 31 38 54 64 65 65 59 66 71 72 76 68 79 89 87 88 On Entrance 51 | 6 6 7 11 22 23 29 32 40 64 65 65 66 59 71 70 74 81 70 92 89 88 Naked Turns 15 | . . . . . . . . . . . . . . . . . . . . . 15 Heaviest Build 93 | 14 15 19 25 25 46 52 52 79 78 61 62 62 64 59 69 71 75 85 85 85 93 Greatest Support 104 | 20 40 40 40 40 60 60 60 60 60 60 60 60 80 80 80 68 48 104 104 104 103 Greatest Overweight (x) 1 | . . . . . . . . 1 1 1 1 1 . . 1 1 1 1 . 1 1 Average Overweight (x) . | . . . . . . . . . . 1 . . . . . . 1 . . . . Largest Inventory Capacity 15 | . 8 8 8 8 15 15 15 15 15 15 15 15 15 15 15 15 15 15 15 15 15 Average Capacity 14 | . 8 8 8 8 11 15 15 15 15 15 15 15 15 15 15 15 15 15 15 15 14 Most Carried 15 | . 8 8 8 8 13 12 15 15 15 15 15 15 15 15 15 15 15 15 15 15 15 Average Carried 13 | . 7 7 7 8 9 11 14 14 14 15 14 14 13 14 9 12 14 13 15 14 14 Final Capacity 15 | 8 8 8 8 8 15 15 15 15 15 15 15 15 15 15 15 15 15 15 15 15 5 Final Carried 15 | 6 8 8 8 8 13 11 15 15 15 15 15 15 15 15 10 15 14 15 15 15 5 Class Distribution -------------------- 32% | Mutant 24% | Scavenger-Gunner 16% | Derelict-Gunner 8% | Scavenger-Tank 7% | Gunner 5% | Tank 5% | Scavenger-Mutant Dominant Class ---------------- Mutant | -10/Materials Mutant | -10/Mines Mutant | -10/Exiles Mutant | -9/Mines Scavenger-Tank | -8/Materials Scavenger-Tank | -7/Factory Scavenger-Tank | -7/DSF Scavenger-Tank | -6/Factory Scavenger-Mutant | -6/Lower Caves Mutant | -6/Lower Caves Mutant | -6/Zion Gunner | -5/Proximity Caves Scavenger-Gunner | -5/Factory Derelict-Gunner | -5/Upper Caves Scavenger-Gunner | -5/Upper Caves Scavenger-Gunner | -5/Zhirov Derelict-Gunner | -4/Proximity Caves Derelict-Gunner | -4/Factory Tank | -4/Upper Caves Scavenger-Gunner | -4/Upper Caves Scavenger-Gunner | -4/Warlord Resources | -11 -10 -10 -10 -9 -8 -7 -7 -6 -6 -6 -6 -5 -5 -5 -5 -5 -4 -4 -4 -4 -4 ----------- Run | Yrd Mat Min Exi Min Mat Fac DSF Fac Low Low Zio Pro Fac Upp Upp Zhi Pro Fac Upp Upp War Matter Collected 3921 | 200 84 76 36 . 107 . 109 419 41 150 40 222 448 131 270 . 770 21 128 318 351 Remotely . | . . . . . . . . . . . . . . . . . . . . . . Salvage Created 5427 | . 294 145 . 53 246 . 541 832 . 274 . 193 1041 201 354 . 384 . 71 284 514 Parts 282 | . 13 13 . 6 15 . 18 59 . 14 . 11 65 6 11 . 20 . 1 14 16 Haulers Intercepted . | . . . . . . . . . . . . . . . . . . . . . . Recyclers Shooed 2 | . . . . . 1 . . 1 . . . . . . . . . . . . . Parts Field Recycled . | . . . . . . . . . . . . . . . . . . . . . . Retrieved Matter . | . . . . . . . . . . . . . . . . . . . . . . Parts Self-Destructed 91 | . . . . . . . . . 4 14 1 10 . 6 9 . 26 . 2 19 . Prevented 2 | . . . . . . . . . . . . . . . 2 . . . . . . Kills | -11 -10 -10 -10 -9 -8 -7 -7 -6 -6 -6 -6 -5 -5 -5 -5 -5 -4 -4 -4 -4 -4 ------- Run | Yrd Mat Min Exi Min Mat Fac DSF Fac Low Low Zio Pro Fac Upp Upp Zhi Pro Fac Upp Upp War Combat Hostiles Destroyed 112 | . 4 5 . 3 4 . 9 14 . 6 . 4 20 3 10 . 10 . 2 7 11 Melee 2 | . . . . . . . . . . . . . 2 . . . . . . . . Guns 84 | . 3 4 . 3 4 . 9 14 . 6 . 4 18 3 3 . . . 1 7 5 Cannons 15 | . . 1 . . . . . . . . . . . . . . 10 . 1 . 3 AOE 11 | . 1 . . . . . . . . . . . . . 7 . . . . . 3 Classes Destroyed 20 | . 3 1 . . 2 . . 3 . 1 . 1 4 . 1 . 1 . . . 3 Worker 3 | . . . . . . . . . . . . . 3 . . . . . . . . Builder 3 | . . . . . . . . 2 . . . . 1 . . . . . . . . Tunneler 1 | . 1 . . . . . . . . . . . . . . . . . . . . Recycler 2 | . 1 1 . . . . . . . . . . . . . . . . . . . Mechanic 1 | . . . . . . . . . . . . . 1 . . . . . . . . Operator 2 | . . . . . . . . . . . . . 2 . . . . . . . . Watcher 2 | . . . . . 1 . . 1 . . . . . . . . . . . . . Swarmer 27 | . . 5 . 3 . . 2 . . 2 . . 9 . 1 . . . . 4 1 Saboteur 2 | . . . . . . . . . . . . . . . . . . . . . 2 Grunt 38 | . 4 . . . . . 7 8 . 2 . . 6 2 5 . . . 1 . 3 Brawler 1 | . . . . . . . . . . . . . . . . . . . . . 1 Duelist 4 | . . . . . . . . . . 1 . . . . 2 . . . 1 . . Protector 4 | . . . . . . . . . . . . . . . 1 . 3 . . . . Sentry 12 | . . . . . 4 . . 2 . 1 . 1 . 1 1 . 1 . . 1 . Demolisher 4 | . . . . . . . . . . . . . . . . . 4 . . . . Hunter 10 | . . . . . . . . . . . . 3 1 . . . 2 . . 2 2 Programmer 4 | . . . . . . . . 2 . . . . 2 . . . . . . . . Heavy 3 | . . . . . . . . 2 . . . . 1 . . . . . . . . Behemoth 1 | . . . . . . . . . . . . . 1 . . . . . . . . Executioner 2 | . . . . . . . . . . . . . . . . . . . . . 2 Best Kill Streak 10 | . 4 3 . 3 1 . 4 4 . 3 . 1 5 3 10 . 1 . 2 4 6 Combat Bots Only 10 | . 2 3 . 3 1 . 4 4 . 3 . 1 5 3 10 . 1 . 2 4 6 Max Kills in Single Turn 2 | . 1 1 . 1 1 . 1 1 . 1 . 1 2 1 2 . 1 . 2 2 2 Gunslinging 1 | . . . . . . . . . . . . . 1 . . . . . . . . Exploded 2 | . 1 . . . . . . . . . . . . . 2 . . . . . 2 Melee 1 | . . . . . . . . . . . . . 1 . . . . . . . . Uniques/NPCs Destroyed . | . . . . . . . . . . . . . . . . . . . . . . Combat | -11 -10 -10 -10 -9 -8 -7 -7 -6 -6 -6 -6 -5 -5 -5 -5 -5 -4 -4 -4 -4 -4 -------- Run | Yrd Mat Min Exi Min Mat Fac DSF Fac Low Low Zio Pro Fac Upp Upp Zhi Pro Fac Upp Upp War Hostile Shots Fired 752 | . 24 18 . 15 10 . 21 100 . 33 . 57 129 9 63 . 58 6 2 42 165 Missed 216 | . 8 2 . 2 3 . 6 33 . 14 . 14 25 1 18 . 24 3 . 7 56 Damage Taken 10737 | . 178 132 . 132 106 . 232 1054 . 236 . 634 1894 163 969 . 690 241 49 748 3279 Core 1599 | . 11 16 . 19 . . 16 43 . 14 . 57 87 36 38 . 153 17 . 67 1025 Absorbed by Shields . | . . . . . . . . . . . . . . . . . . . . . . Redirected to Shielding 170 | . . . . . . . . . . . . . . . . . 170 . . . . Regen/Repaired (Parts) 407 | . . . . . . . . . . . . . 46 . . . . . . . 361 Core Remaining (%) 88 | 100 . . . 81 100 . 97 . . . . 86 . . . . 68 . . . . Volleys Fired 242 | . 18 14 . . 7 . 9 46 . 12 . 12 37 7 14 . 34 . 3 15 14 Largest 4 | . 2 2 . . 1 . 2 2 . 2 . 4 4 2 3 . 4 . 4 4 4 Hottest 186 | . 60 83 . . 23 . 46 60 . 60 . 121 121 56 95 . 166 . 171 171 186 Shots Fired 776 | . 36 28 . 15 23 . 52 138 . 24 . 48 141 20 37 . 109 . 12 51 42 Gun 700 | . 36 21 . 15 23 . 52 138 . 24 . 48 141 20 28 . 75 . 9 39 31 Cannon 64 | . . 7 . . . . . . . . . . . . . . 34 . 3 12 8 Launcher 11 | . . . . . . . . . . . . . . . 9 . . . . . 2 Special 1 | . . . . . . . . . . . . . . . . . . . . . 1 Kinetic 726 | . 18 14 . 15 23 . 52 138 . 24 . 48 141 20 28 . 109 . 12 51 33 Thermal 7 | . . 7 . . . . . . . . . . . . . . . . . . . Explosive 11 | . . . . . . . . . . . . . . . 9 . . . . . 2 Electromagnetic 25 | . 18 7 . . . . . . . . . . . . . . . . . . . Entropic 6 | . . . . . . . . . . . . . . . . . . . . . 6 Robot Hit Streak 19 | . 7 3 . 6 12 . 9 14 . 7 . 9 15 11 13 . 10 . 8 19 12 Robot Miss Streak 5 | . 3 5 . 1 3 . 2 4 . 3 . 5 3 1 3 . 4 . 2 2 2 Penetration Max 1 | . . . . . . . . . . . . . 1 . 1 . 1 . 1 1 1 Secondary Targets 12 | . 2 . . . . . . . . 2 . . 7 . 1 . . . . . . Max Gunslinging Chain 2 | . 1 . . . . . . . . 1 . . 2 . 1 . . . . . . Autonomous 165 | . . . . 15 16 . 34 46 . . . . 42 7 3 . 2 . . . . Shots Hit Robots 559 | . 19 9 . 12 19 . 38 109 . 18 . 34 116 18 28 . 69 . 8 30 32 Core Hits 279 | . 11 7 . 3 8 . 16 39 . 11 . 25 45 7 28 . 35 . 4 13 27 Critical Kills 1 | . . . . . . . . . . . . . . . . . . . . 1 . Critical Parts Destroyed 4 | . . . . . . . . . . . . . 1 . 1 . . . 1 . 1 Critical Strikes 19 | . . . . . . . . . . . . 1 5 . 1 . 7 . 2 2 1 Destroy 6 | . . . . . . . . . . . . . 2 . 1 . . . 1 1 1 Blast 9 | . . . . . . . . . . . . . . . . . 7 . 1 1 . Sever 4 | . . . . . . . . . . . . 1 3 . . . . . . . . Melee Attacks 15 | . . . . . . . . . . . . 3 12 . . . . . . . . Impact . | . . . . . . . . . . . . . . . . . . . . . . Slashing 15 | . . . . . . . . . . . . 3 12 . . . . . . . . Piercing . | . . . . . . . . . . . . . . . . . . . . . . Sneak Attacks 3 | . . . . . . . . . . . . . 3 . . . . . . . . Combat Hostiles . | . . . . . . . . . . . . . . . . . . . . . . Follow-up Attacks . | . . . . . . . . . . . . . . . . . . . . . . Damage Inflicted 17764 | . 318 123 . 424 433 . 1191 2838 . 404 . 553 3278 426 1710 . 2558 . 412 846 2250 Guns 12235 | . 296 71 . 424 433 . 1191 2799 . 404 . 508 2622 426 466 . 911 . 189 568 927 Cannons 2630 | . . 52 . . . . . . . . . . . . . . 1647 . 223 278 430 Explosions 2172 | . 22 . . . . . . 13 . . . . . . 1244 . . . . . 893 Melee 701 | . . . . . . . . . . . . 45 656 . . . . . . . . Ramming 26 | . . . . . . . . 26 . . . . . . . . . . . . . Kinetic 14339 | . 133 28 . 424 433 . 1191 2799 . 404 . 508 2622 426 466 . 2558 . 412 846 1089 Thermal 74 | . 22 52 . . . . . . . . . . . . . . . . . . . Explosive 2150 | . . . . . . . . 13 . . . . . . 1244 . . . . . 893 Electromagnetic 206 | . 163 43 . . . . . . . . . . . . . . . . . . . Impact . | . . . . . . . . . . . . . . . . . . . . . . Slashing 701 | . . . . . . . . . . . . 45 656 . . . . . . . . Piercing . | . . . . . . . . . . . . . . . . . . . . . . Entropic 268 | . . . . . . . . . . . . . . . . . . . . . 268 Highest Corruption 3 | . . . . . . . . 1 1 1 1 . . . . . . 3 3 . 2 Average Corruption 1 | . . . . . . . . 1 1 1 1 . . . . . . 3 2 . 1 Corruption Purged 3 | . . . . . . . . . . . . . . . . . . . 3 . . Corruption Blocked . | . . . . . . . . . . . . . . . . . . . . . . Effects 17 | . . . . . . . . 1 4 5 2 . . . . . . . 3 . 2 Message Errors 4 | . . . . . . . . . . 2 1 . . . . . . . 1 . . Matter Fused 2 | . . . . . . . . . 1 . . . . . . . . . . . 1 Heat Flow Errors 1 | . . . . . . . . . . . . . . . . . . . . . 1 Energy Discharges 5 | . . . . . . . . . 2 2 . . . . . . . . 1 . . Data Loss (minor) 3 | . . . . . . . . . 1 1 . . . . . . . . 1 . . Misfires 1 | . . . . . . . . 1 . . . . . . . . . . . . . Alerts 1 | . . . . . . . . . . . 1 . . . . . . . . . . Overload Shots . | . . . . . . . . . . . . . . . . . . . . . . Overflow Damage 66 | . . . . . . . . . . . . . . . 14 . 14 . 33 . 5 Projectiles 47 | . . . . . . . . . . . . . . . . . 14 . 33 . . Explosions 19 | . . . . . . . . . . . . . . . 14 . . . . . 5 Melee . | . . . . . . . . . . . . . . . . . . . . . . Knockbacks 11 | . . . . . . . . . . . . . . . . . 8 . . . 3 Impact . | . . . . . . . . . . . . . . . . . . . . . . Kinetic 11 | . . . . . . . . . . . . . . . . . 8 . . . 3 Secondary . | . . . . . . . . . . . . . . . . . . . . . . Self-Inflicted Damage 11 | . . . . . . . . . . . . . . . 11 . . . . . . Shots 1 | . . . . . . . . . . . . . . . 1 . . . . . . Rammed 3 | . . . . . . . . 3 . . . . . . . . . . . . . Targets Rammed 3 | . . . . . . . . 3 . . . . . . . . . . . . . Kicked . | . . . . . . . . . . . . . . . . . . . . . . Crushed . | . . . . . . . . . . . . . . . . . . . . . . Highest Temperature 312 | . 60 . . . 1 . . 312 . 56 . 135 290 17 217 . 97 . 117 144 64 Average Temperature 75 | . 30 . . . 1 . . 111 . 17 . 57 134 7 121 . 24 . 63 43 26 Received Heat Transfer 1722 | . 102 . . 48 36 . 108 327 . 87 . . 360 63 273 . 9 21 9 27 252 Effects 4 | . . . . . . . . 2 . . . . 1 . 1 . . . . . . Energy Bleed 2 | . . . . . . . . . . . . . 1 . 1 . . . . . . Interference 2 | . . . . . . . . 2 . . . . . . . . . . . . . Siege Activations . | . . . . . . . . . . . . . . . . . . . . . . Robots Corrupted . | . . . . . . . . . . . . . . . . . . . . . . Combat Hostiles . | . . . . . . . . . . . . . . . . . . . . . . Parts Fried . | . . . . . . . . . . . . . . . . . . . . . . Impact Corruptions . | . . . . . . . . . . . . . . . . . . . . . . Robots Melted . | . . . . . . . . . . . . . . . . . . . . . . Combat Hostiles . | . . . . . . . . . . . . . . . . . . . . . . Parts Melted 7 | . . 2 . . . . . . . . . . . . . . . . . . 5 Heat Transferred 111 | . . 111 . . . . . . . . . . . . . . . . . . . Parts Sabotaged 3 | . . . . . . . . . . . . . . . . . . . . . 3 Parts Stolen . | . . . . . . . . . . . . . . . . . . . . . . Parts Stripped . | . . . . . . . . . . . . . . . . . . . . . . Power Chain Reactions 1 | . 1 . . . . . . . . . . . . . . . . . . . . Alert | -11 -10 -10 -10 -9 -8 -7 -7 -6 -6 -6 -6 -5 -5 -5 -5 -5 -4 -4 -4 -4 -4 ------- Run | Yrd Mat Min Exi Min Mat Fac DSF Fac Low Low Zio Pro Fac Upp Upp Zhi Pro Fac Upp Upp War Peak Influence 418 | . 155 215 . 134 236 21 239 418 . . . . 262 . . . . 305 . . . Initial 300 | . . 60 . . 52 16 14 125 . . . . . . . . . 300 . . . Average 151 | . 102 143 . 89 121 16 98 201 . . . . 112 . . . . 263 . . . Maximum Alert Level 2 | . . 1 . . 1 . 1 2 . . . . 1 . . . . 1 . . . Low Security (%) 69 | . 100 79 . 100 84 100 86 51 . . . . 78 . . . . 16 . . . Level 1 30 | . . 20 . . 15 . 13 47 . . . . 21 . . . . 83 . . . Level 2 . | . . . . . . . . . . . . . . . . . . . . . . Level 3 . | . . . . . . . . . . . . . . . . . . . . . . Level 4 . | . . . . . . . . . . . . . . . . . . . . . . Level 5 . | . . . . . . . . . . . . . . . . . . . . . . High Security . | . . . . . . . . . . . . . . . . . . . . . . Max Security . | . . . . . . . . . . . . . . . . . . . . . . Sterilizations 1 | . . . . . . . 1 . . . . . . . . . . . . . . Squads Dispatched 19 | . 1 . . 1 . . 1 4 . . . . 9 . 1 . . 2 . . . Investigation 3 | . . . . 1 . . . . . . . . 2 . . . . . . . . Extermination 3 | . . . . . . . . 1 . . . . 1 . . . . 1 . . . Reinforcement 10 | . 1 . . . . . 1 3 . . . . 4 . . . . 1 . . . Assault 1 | . . . . . . . . . . . . . . . 1 . . . . . . Garrison 2 | . . . . . . . . . . . . . 2 . . . . . . . . Intercept . | . . . . . . . . . . . . . . . . . . . . . . Searches Triggered . | . . . . . . . . . . . . . . . . . . . . . . Construction Impeded 3 | . . . . . . . . 1 . . . . 1 . . . . 1 . . . Haulers Reinforced . | . . . . . . . . . . . . . . . . . . . . . . Active Scanning Responses . | . . . . . . . . . . . . . . . . . . . . . . Cargo Convoy Interrupts 1 | . . . . . . . . . . . . . 1 . . . . . . . . Stealth | -11 -10 -10 -10 -9 -8 -7 -7 -6 -6 -6 -6 -5 -5 -5 -5 -5 -4 -4 -4 -4 -4 --------- Run | Yrd Mat Min Exi Min Mat Fac DSF Fac Low Low Zio Pro Fac Upp Upp Zhi Pro Fac Upp Upp War Distress Signals 52 | . 1 . . . . . . 1 . . . . 2 . . . 45 3 . . . Communications Jammed . | . . . . . . . . . . . . . . . . . . . . . . Distress Signals . | . . . . . . . . . . . . . . . . . . . . . . Times Spotted 180 | . 6 8 . 5 4 . 10 20 . 6 . 4 28 3 11 . 16 7 6 10 36 Peak Tracking Total 11 | . 3 3 . 3 2 . 4 5 . 3 . 2 6 2 8 . 4 3 9 4 11 Tactical Retreats 4 | . . 1 . . . . 1 1 . . . . . . . . 1 . . . . Traps | -11 -10 -10 -10 -9 -8 -7 -7 -6 -6 -6 -6 -5 -5 -5 -5 -5 -4 -4 -4 -4 -4 ------- Run | Yrd Mat Min Exi Min Mat Fac DSF Fac Low Low Zio Pro Fac Upp Upp Zhi Pro Fac Upp Upp War Traps Triggered 3 | . . . . . . . . . . . . . . . . . 1 2 . . . Indirectly . | . . . . . . . . . . . . . . . . . . . . . . Trap Hack Attempts . | . . . . . . . . . . . . . . . . . . . . . . Triggered . | . . . . . . . . . . . . . . . . . . . . . . Disarmed . | . . . . . . . . . . . . . . . . . . . . . . Reprogrammed . | . . . . . . . . . . . . . . . . . . . . . . Reused . | . . . . . . . . . . . . . . . . . . . . . . Traps Extracted . | . . . . . . . . . . . . . . . . . . . . . . Installed . | . . . . . . . . . . . . . . . . . . . . . . Triggered 17 | . . . . . . . . . . . . . 2 . 2 . . . . . 13 Machines | -11 -10 -10 -10 -9 -8 -7 -7 -6 -6 -6 -6 -5 -5 -5 -5 -5 -4 -4 -4 -4 -4 ---------- Run | Yrd Mat Min Exi Min Mat Fac DSF Fac Low Low Zio Pro Fac Upp Upp Zhi Pro Fac Upp Upp War Machines Disabled 10 | . 1 1 . 1 . . 1 1 . . . . . . 1 . 2 . 1 1 . Max in Single Turn 1 | . 1 1 . 1 . . 1 1 . . . . . . 1 . 1 . . 1 . Machines Repaired . | . . . . . . . . . . . . . . . . . . . . . . Machines Dismantled . | . . . . . . . . . . . . . . . . . . . . . . Machines Sabotaged . | . . . . . . . . . . . . . . . . . . . . . . Overloaded Fab Kills . | . . . . . . . . . . . . . . . . . . . . . . Hacking | -11 -10 -10 -10 -9 -8 -7 -7 -6 -6 -6 -6 -5 -5 -5 -5 -5 -4 -4 -4 -4 -4 --------- Run | Yrd Mat Min Exi Min Mat Fac DSF Fac Low Low Zio Pro Fac Upp Upp Zhi Pro Fac Upp Upp War Machines Accessed 35 | . 2 . 2 1 2 1 . 4 2 1 . . 6 1 . 9 1 . . 1 2 Terminals 12 | . 1 . . 1 2 1 . 3 . . . . 2 1 . . 1 . . . . Fabricators 2 | . . . . . . . . . . . . . 2 . . . . . . . . Repair Stations 1 | . . . . . . . . . . . . . 1 . . . . . . . . Recycling Units 2 | . 1 . . . . . . . . . . . 1 . . . . . . . . Scanalyzers 1 | . . . . . . . . 1 . . . . . . . . . . . . . Garrison Access . | . . . . . . . . . . . . . . . . . . . . . . Total Hacks 104 | . 5 . 2 5 9 1 . 8 7 1 . . 11 1 . 48 2 . . 1 3 Successful 83 | . 2 . 2 2 5 1 . 3 7 1 . . 5 1 . 48 2 . . 1 3 Failed 20 | . 3 . . 3 3 . . 5 . . . . 6 . . . . . . . . Catastrophic 6 | . . . . 1 1 . . 2 . . . . 2 . . . . . . . . Database Lockouts 1 | . . . . . 1 . . . . . . . . . . . . . . . . Manual 25 | . 3 . 1 5 8 . . 3 . . . . 5 . . . . . . . . Terminals 30 | . 3 . . 5 9 1 . 7 . . . . 2 1 . . 2 . . . . Fabricators 5 | . . . . . . . . . . . . . 5 . . . . . . . . Repair Stations 1 | . . . . . . . . . . . . . 1 . . . . . . . . Recycling Units 5 | . 2 . . . . . . . . . . . 3 . . . . . . . . Scanalyzers 1 | . . . . . . . . 1 . . . . . . . . . . . . . Garrison Access . | . . . . . . . . . . . . . . . . . . . . . . Terminal Hacks 72 | . . . 2 2 3 1 . 1 7 1 . . . 1 . 48 2 . . 1 3 Record 49 | . . . 1 . . . . . 6 . . . . 1 . 36 2 . . 1 2 Part Schematic 5 | . . . . . . . . 1 . . . . . . . 4 . . . . . Robot Analysis 8 | . . . . 2 2 . . . . . . . . . . 4 . . . . . Prototype ID Bank 4 | . . . . . . . . . . . . . . . . 4 . . . . . Open Door 3 | . . . . . . . . . 1 1 . . . . . . . . . . 1 Open DSF 1 | . . . . . . 1 . . . . . . . . . . . . . . . Registered Components 1 | . . . . . 1 . . . . . . . . . . . . . . . . Derelict Proto ID Bank 1 | . . . 1 . . . . . . . . . . . . . . . . . . Fabricator Hacks 4 | . . . . . . . . . . . . . 4 . . . . . . . . Load Schematic 2 | . . . . . . . . . . . . . 2 . . . . . . . . Build 2 | . . . . . . . . . . . . . 2 . . . . . . . . Repair Station Hacks . | . . . . . . . . . . . . . . . . . . . . . . Recycling Unit Hacks . | . . . . . . . . . . . . . . . . . . . . . . Scanalyzer 1 | . . . . . . . . 1 . . . . . . . . . . . . . Insert Component 1 | . . . . . . . . 1 . . . . . . . . . . . . . Garrison Access Hacks . | . . . . . . . . . . . . . . . . . . . . . . Unauthorized Hacks 6 | . 2 . . . 2 . . 1 . . . . 1 . . . . . . . . Terminals 4 | . 1 . . . 2 . . 1 . . . . . . . . . . . . . Botnet 4 | . 1 . . . 2 . . 1 . . . . . . . . . . . . . Fabricators . | . . . . . . . . . . . . . . . . . . . . . . Repair Stations . | . . . . . . . . . . . . . . . . . . . . . . Recycling Units 2 | . 1 . . . . . . . . . . . 1 . . . . . . . . Monitor 2 | . 1 . . . . . . . . . . . 1 . . . . . . . . Scanalyzers . | . . . . . . . . . . . . . . . . . . . . . . Garrison Access . | . . . . . . . . . . . . . . . . . . . . . . Data Cores Recovered . | . . . . . . . . . . . . . . . . . . . . . . Used . | . . . . . . . . . . . . . . . . . . . . . . Hacking Detections 14 | . 2 . . 1 2 . . 3 . . . . 6 . . . . . . . . Full Trace Events 3 | . . . . 1 . . . . . . . . 2 . . . . . . . . Feedback Events . | . . . . . . . . . . . . . . . . . . . . . . Feedback Blocked . | . . . . . . . . . . . . . . . . . . . . . . Robot Schematics Acquired 3 | . . . . . . . . . . . 3 . . . . . . . . . . Robots Built 3 | . . . . . . . . . . . . . 3 . . . . . . . . Authchips . | . . . . . . . . . . . . . . . . . . . . . . Time 134 | . . . . . . . . . . . . . 134 . . . . . . . . Total Robot Build Rating 12 | . . . . . . . . . . . . . 12 . . . . . . . . Part Schematics Acquired 19 | . . . . . . . . 1 . . 14 . . . . 4 . . . . . Parts Built 2 | . . . . . . . . . . . . . 2 . . . . . . . . Authchips . | . . . . . . . . . . . . . . . . . . . . . . Time 84 | . . . . . . . . . . . . . 84 . . . . . . . . Total Part Build Rating 8 | . . . . . . . . . . . . . 8 . . . . . . . . Parts Repaired . | . . . . . . . . . . . . . . . . . . . . . . Time . | . . . . . . . . . . . . . . . . . . . . . . Parts Recycled . | . . . . . . . . . . . . . . . . . . . . . . Recycled Matter . | . . . . . . . . . . . . . . . . . . . . . . Retrieved Matter . | . . . . . . . . . . . . . . . . . . . . . . Retrieved Components . | . . . . . . . . . . . . . . . . . . . . . . Parts Scanalyzed . | . . . . . . . . . . . . . . . . . . . . . . Part Schematics Acquired . | . . . . . . . . . . . . . . . . . . . . . . Parts Damaged . | . . . . . . . . . . . . . . . . . . . . . . Bothacking | -11 -10 -10 -10 -9 -8 -7 -7 -6 -6 -6 -6 -5 -5 -5 -5 -5 -4 -4 -4 -4 -4 ------------ Run | Yrd Mat Min Exi Min Mat Fac DSF Fac Low Low Zio Pro Fac Upp Upp Zhi Pro Fac Upp Upp War Used RIF Installer . | . . . . . . . . . . . . . . . . . . . . . . Robots Hacked . | . . . . . . . . . . . . . . . . . . . . . . Non-combat . | . . . . . . . . . . . . . . . . . . . . . . Combat . | . . . . . . . . . . . . . . . . . . . . . . Robot Hacks Applied . | . . . . . . . . . . . . . . . . . . . . . . Relay Couplers Released . | . . . . . . . . . . . . . . . . . . . . . . Fabnet Peak Effective % . | . . . . . . . . . . . . . . . . . . . . . . Robots Rewired 5 | . . . . . . . . . . . . . . . 1 . 2 . 2 . . Allies Hacked . | . . . . . . . . . . . . . . . . . . . . . . Hacks Repelled . | . . . . . . . . . . . . . . . . . . . . . . Allies | -11 -10 -10 -10 -9 -8 -7 -7 -6 -6 -6 -6 -5 -5 -5 -5 -5 -4 -4 -4 -4 -4 -------- Run | Yrd Mat Min Exi Min Mat Fac DSF Fac Low Low Zio Pro Fac Upp Upp Zhi Pro Fac Upp Upp War Total Allies 11 | . . . . . . . . . . . . . 3 . 1 . 2 3 2 . . Largest Group 5 | . . . . . . . . . . . . . 3 . 1 1 2 5 3 3 . Highest-Rated Group 232 | . . . . . . . . . . . . . 60 . 30 30 98 232 139 139 . Highest-Rated Ally 49 | . . . . . . . . . . . . . 20 . 30 30 49 49 49 47 . Warlord Squad Rendezvous 4 | . . . . . . . . . . . . . 2 . . . . 2 . . . Dakka 1 | . . . . . . . . . . . . . 1 . . . . . . . . Muscle 1 | . . . . . . . . . . . . . 1 . . . . . . . . Ranger 1 | . . . . . . . . . . . . . . . . . . 1 . . . Chimera 1 | . . . . . . . . . . . . . . . . . . 1 . . . Total Orders 4 | . . . . . . . . . . . . . . . . . 4 . . . . ROAM 2 | . . . . . . . . . . . . . . . . . 2 . . . . FOLLOW 2 | . . . . . . . . . . . . . . . . . 2 . . . . Ally Attacks 49 | . . . . . . . . . . . . . 6 . . . 8 12 3 20 . Total Damage 3020 | . . . . . . . . . . . . . 110 . . . 566 765 955 624 . Kills 23 | . . . . . . . . . . . . . 1 . . . 4 6 7 5 . Allies Corrupted . | . . . . . . . . . . . . . . . . . . . . . . Allies Melted 3 | . . . . . . . . . . . . . 1 . . . . . . 1 1 Intel | -11 -10 -10 -10 -9 -8 -7 -7 -6 -6 -6 -6 -5 -5 -5 -5 -5 -4 -4 -4 -4 -4 ------- Run | Yrd Mat Min Exi Min Mat Fac DSF Fac Low Low Zio Pro Fac Upp Upp Zhi Pro Fac Upp Upp War Robot Analysis Total 7 | . . . . 2 1 . . . . . . . . . . 4 . . . . . Derelict Logs Recovered 12 | . . . . 1 . . . . . 1 2 2 . 2 2 . 1 . . 1 . Drone Launches . | . . . . . . . . . . . . . . . . . . . . . . Drone Recoveries . | . . . . . . . . . . . . . . . . . . . . . . Exploration | -11 -10 -10 -10 -9 -8 -7 -7 -6 -6 -6 -6 -5 -5 -5 -5 -5 -4 -4 -4 -4 -4 ------------- Run | Yrd Mat Min Exi Min Mat Fac DSF Fac Low Low Zio Pro Fac Upp Upp Zhi Pro Fac Upp Upp War Turns Passed 17996 | . 306 405 962 289 451 17 386 986 677 975 2398 836 942 507 827 304 2882 528 513 1214 1591 Spaces Moved 8065 | 1 163 215 598 181 265 10 209 397 268 377 956 448 443 283 360 155 1105 202 303 478 648 Core 24 | . . . . . . . . . . . . . . . . . . . . . 24 Treads 7988 | . 111 215 598 181 265 10 209 397 268 377 956 448 443 283 360 155 1105 202 303 478 624 Legs 53 | 1 52 . . . . . . . . . . . . . . . . . . . . Wheels . | . . . . . . . . . . . . . . . . . . . . . . Hover . | . . . . . . . . . . . . . . . . . . . . . . Flight . | . . . . . . . . . . . . . . . . . . . . . . Fastest Speed 50 | 120 120 160 160 160 160 160 160 170 170 250 170 170 170 170 166 166 245 162 162 162 50 Average Speed 208 | 120 147 160 160 160 160 160 166 207 249 250 249 171 170 170 214 189 245 235 162 241 233 Slowest Speed 250 | 120 160 160 160 160 160 160 170 250 250 250 250 250 170 170 246 246 245 245 162 243 250 Overloaded Moves . | . . . . . . . . . . . . . . . . . . . . . . Propulsion Burnouts . | . . . . . . . . . . . . . . . . . . . . . . Robots Hopped . | . . . . . . . . . . . . . . . . . . . . . . Cave-ins Triggered . | . . . . . . . . . . . . . . . . . . . . . . Teleports 1 | . . . . . . . . . . . . . . . . . . . . . 1 Exploration Rate (%) 51 | 2 28 37 91 41 22 . 86 10 48 64 79 64 14 58 67 62 96 8 54 73 83 Regions Visited 21 Branch Regions 14 Pre-discovered Areas 9 | . . . 1 . . . . . 2 . 1 . . 1 . 3 1 . . . . Known Exits Taken 14 | . . . . . . 1 . 1 1 1 1 1 1 1 1 1 1 1 1 1 . Unknown Exits Taken 6 | 1 1 1 1 1 1 . . . . . . . . . . . . . . . . Scrap Searched 16 | . . . . . . . . . 1 1 2 2 . 3 3 . 1 . 2 1 . Spaces Dug . | . . . . . . . . . . . . . . . . . . . . . . Terrain Destroyed 144 | . . . . 7 15 . . 31 . . . . 6 7 48 . 10 . 1 8 11 Melee . | . . . . . . . . . . . . . . . . . . . . . . Projectile 75 | . . . . 7 15 . . 11 . . . . 6 7 3 . 10 . 1 8 7 AOE 69 | . . . . . . . . 20 . . . . . . 45 . . . . . 4 Terrain Rammed . | . . . . . . . . . . . . . . . . . . . . . . Walls Destroyed . | . . . . . . . . . . . . . . . . . . . . . . Machines Disabled . | . . . . . . . . . . . . . . . . . . . . . . Actions | -11 -10 -10 -10 -9 -8 -7 -7 -6 -6 -6 -6 -5 -5 -5 -5 -5 -4 -4 -4 -4 -4 --------- Run | Yrd Mat Min Exi Min Mat Fac DSF Fac Low Low Zio Pro Fac Upp Upp Zhi Pro Fac Upp Upp War Total 8708 | . 194 254 605 182 286 11 239 475 278 390 967 486 536 297 388 165 1193 256 317 498 691 Wait 92 | . . 1 . . . . . . . . 2 16 21 . . . 11 40 . . 1 Move 8044 | . 162 214 597 180 264 9 208 396 267 376 955 447 442 282 359 154 1104 201 302 477 648 Hop . | . . . . . . . . . . . . . . . . . . . . . . Pick Up 72 | . 6 9 1 1 9 . 9 7 2 1 1 2 9 . 1 3 4 4 . 2 1 Fast Attach 32 | . 1 1 1 . . . . . 2 . 4 . 2 1 . 3 3 4 1 . 9 Attach 48 | . 2 1 . . 4 2 . 4 1 . . 2 11 . 6 1 3 3 . 2 6 Detach 17 | . . . 2 . . . . . 1 . . . 2 1 1 3 2 2 1 . 2 Swap 30 | . 1 2 1 . 1 . 4 8 1 . . 1 . 3 1 1 1 . . 2 3 Drop 71 | . 4 12 3 1 1 . 9 11 3 1 5 3 . 3 . . 5 2 1 . 7 Fire 242 | . 18 14 . . 7 . 9 46 . 12 . 12 37 7 14 . 34 . 3 15 14 Melee 15 | . . . . . . . . . . . . 3 12 . . . . . . . . Ram . | . . . . . . . . . . . . . . . . . . . . . . Kick . | . . . . . . . . . . . . . . . . . . . . . . Crush 3 | . . . . . . . . 3 . . . . . . . . . . . . . Escape Stasis 2 | . . . . . . . . . . . . . . . . . 2 . . . . Rewire 40 | . . . . . . . . . 1 . . . . . 6 . 24 . 9 . . Trap . | . . . . . . . . . . . . . . . . . . . . . . Miscellaneous . | . . . . . . . . . . . . . . . . . . . . . . Route ------- -11/Scrapyard -10/Materials -10/Mines (discovered 2 exits: [*Mat] / *Exi) -10/Exiles -9/Mines -8/Materials -7/Factory -7/DSF -6/Factory -6/Lower Caves -6/Lower Caves -6/Zion -5/Proximity Caves -5/Factory (discovered 4 exits: Fac / *Upp / Ext x2) -5/Upper Caves -5/Upper Caves (discovered 2 exits: *Fac / *Zhi) -5/Zhirov -4/Proximity Caves -4/Factory -4/Upper Caves -4/Upper Caves -4/Warlord History --------- Turn | Location | Event 1 | -11/Scrapyard | Discovered new exit (range 0) 1 | -11/Scrapyard | Entered Materials 205 | -10/Materials | Discovered new exit (range 12) 307 | -10/Materials | Entered Mines 310 | -10/Mines | Build established: Mutant 325 | -10/Mines | Met a Derelict bent on vengeance 410 | -10/Mines | Joined a pair of Derelicts in attacking an 0b10 outpost 608 | -10/Mines | Deemed a non-threat by the Exiles lab entrance 608 | -10/Mines | Discovered new exit (range 5) 634 | -10/Mines | Discovered new exit (range 12) 712 | -10/Mines | Entered Exiles 752 | -10/Exiles | Met 8R-AWN 780 | -10/Exiles | Met EX-HEX 842 | -10/Exiles | Met EX-DEC 853 | -10/Exiles | Learned location of Zion (-6) 908 | -10/Exiles | Discovered new exit (range 10) 1083 | -10/Exiles | Visited The Gauntlet 1338 | -10/Exiles | Met EX-BIN 1360 | -10/Exiles | Aligned with FarCom system 1362 | -10/Exiles | Given EX-Vault access code 1402 | -10/Exiles | Opened EX-Vault 1418 | -10/Exiles | Found AWS/Gauss 1453 | -10/Exiles | Warned to stay clear of 0b10 Research branches 1674 | -10/Exiles | Left Exiles lab with AWS/Gauss 1674 | -10/Exiles | Entered Mines 1795 | -9/Mines | Received a Rocket Launcher from a helpful Derelict 1827 | -9/Mines | Learned 2 Materials zone layouts 1920 | -9/Mines | Discovered new exit (range 15) 1921 | -9/Mines | Assembled infested the area 1963 | -9/Mines | Entered Materials 1963 | -8/Materials | Evolved 4 slots: Propulsion x1, Utility x2, Weapon x1 2256 | -8/Materials | Central database locked down 2269 | -8/Materials | Build established: Scavenger-Tank 2289 | -8/Materials | Discovered new exit (range 4) 2414 | -8/Materials | Entered Factory 2414 | -7/Factory | Evolved 2 slots: Utility x1, Weapon x1 2429 | -7/Factory | Identified exit to DSF 2431 | -7/Factory | Entered DSF 2432 | -7/DSF | Joined Warlord attack on 0b10 via DSF 2445 | -7/DSF | Additional patrols routed to DSF 2576 | -7/DSF | Discovered new exit (range 16) 2769 | -7/DSF | Sterilization system engaged 2789 | -7/DSF | Ambient heat levels rising (+10) 2804 | -7/DSF | Ambient heat levels rising (+10) 2817 | -7/DSF | Entered Factory 2817 | -6/Factory | Evolved 2 slots: Utility x1, Weapon x1 3260 | -6/Factory | Found Prototype Processor 3361 | -6/Factory | Identified Exp. Targeting Computer 3485 | -6/Factory | AWS/Gauss suddenly broke down 3727 | -6/Factory | Discovered new exit (range 6) 3745 | -6/Factory | Identified exit to Lower Caves 3765 | -6/Factory | Build established: Scavenger-Mutant 3803 | -6/Factory | Entered Lower Caves 3834 | -6/Lower Caves | Met a Warlord Commander 3835 | -6/Lower Caves | Learned location of Warlord (-4) 3836 | -6/Lower Caves | Warlord Commander delivered Encrypted Comm Array 3845 | -6/Lower Caves | Found Encrypted Comm Array 3986 | -6/Lower Caves | Learned Extension trap positions 3986 | -6/Lower Caves | Learned Extension stockpile data 4459 | -6/Lower Caves | Build established: Mutant 4465 | -6/Lower Caves | Discovered new exit (range 7) 4477 | -6/Lower Caves | Identified exit to Lower Caves 4480 | -6/Lower Caves | Entered another Lower Caves area 4579 | -6/Lower Caves | Attracted the attention of an 0b10 checkpoint 5255 | -6/Lower Caves | Learned Factory stockpile data 5432 | -6/Lower Caves | Discovered new exit (range 9) 5452 | -6/Lower Caves | Identified exit to Zion 5455 | -6/Lower Caves | Entered Zion 5600 | -6/Zion | Learned 8 Factory zone layouts 5753 | -6/Zion | System corruption cleaned by Quarantine Array 5985 | -6/Zion | Found Prototype Device 5985 | -6/Zion | Identified Phasing AFG 6069 | -6/Zion | Received a visual enhancement algorithm 6987 | -6/Zion | Learned Factory garrison access intel 7683 | -6/Zion | Given A8's code to call for help 7725 | -6/Zion | Discovered new exit (range 12) 7850 | -6/Zion | Identified exit to Proximity Caves 7853 | -6/Zion | Entered Proximity Caves 7898 | -5/Proximity Caves | Learned Factory trap positions 7936 | -5/Proximity Caves | Spotted B-75 Beast 8151 | -5/Proximity Caves | Attracted the attention of an 0b10 checkpoint 8160 | -5/Proximity Caves | Build established: Scavenger-Gunner 8468 | -5/Proximity Caves | Received a Behemoth hack from an annoying Tinkerer 8522 | -5/Proximity Caves | Build established: Gunner 8587 | -5/Proximity Caves | Learned location of 1 exit from Factory 8664 | -5/Proximity Caves | Discovered new exit (range 16) 8687 | -5/Proximity Caves | Identified exit to Factory 8689 | -5/Proximity Caves | Entered Factory 8689 | -5/Factory | Evolved 2 slots: Propulsion x1, Utility x1 8690 | -5/Factory | Identified exit to Factory 8691 | -5/Factory | Identified exit to Extension 8692 | -5/Factory | Loaded intel: 109 trap records 8694 | -5/Factory | Loaded intel: 4 garrison access locations 8987 | -5/Factory | Build established: Scavenger-Gunner 9002 | -5/Factory | Fabricated Recalibrator? 9058 | -5/Factory | Lost 4 parts (2n2w) 9165 | -5/Factory | AWS/Gauss suddenly broke down 9225 | -5/Factory | Lost 5 parts (1p1n1u2w) 9450 | -5/Factory | Joined by Warlord Dakka squad 9475 | -5/Factory | Cargo convoy interrupted 9498 | -5/Factory | Joined by Warlord Muscle squad 9517 | -5/Factory | Garrison activated, responded to threat 9568 | -5/Factory | AWS/Gauss suddenly broke down 9571 | -5/Factory | Spotted B-75 Beast 9594 | -5/Factory | Discovered new exit (range 11) 9599 | -5/Factory | Destroyed B-75 Beast 9616 | -5/Factory | AWS/Gauss suddenly broke down 9620 | -5/Factory | Fabricated B-48 Gladiator? 9625 | -5/Factory | Identified exit to Upper Caves 9629 | -5/Factory | AWS/Gauss suddenly broke down 9631 | -5/Factory | Entered Upper Caves 9639 | -5/Upper Caves | Lost 6 allies 10031 | -5/Upper Caves | Build established: Derelict-Gunner 10072 | -5/Upper Caves | Learned location of Armory (-4) 10073 | -5/Upper Caves | Attracted the attention of an 0b10 checkpoint 10075 | -5/Upper Caves | AWS/Gauss suddenly broke down 10113 | -5/Upper Caves | Learned location of 1 exit from Factory 10119 | -5/Upper Caves | Discovered new exit (range 10) 10136 | -5/Upper Caves | Identified exit to Upper Caves 10138 | -5/Upper Caves | Entered another Upper Caves area 10140 | -5/Upper Caves | Attracted the attention of an 0b10 outpost 10142 | -5/Upper Caves | AWS/Gauss suddenly broke down 10196 | -5/Upper Caves | Discovered exit to Factory (range 15) 10209 | -5/Upper Caves | Destroyed 10 combat bots 10215 | -5/Upper Caves | Lost 6 parts (2p2n1u1w) 10282 | -5/Upper Caves | Encountered a Warlord checkpoint 10579 | -5/Upper Caves | Build established: Scavenger-Gunner 10785 | -5/Upper Caves | Identified exit to Zhirov 10795 | -5/Upper Caves | Learned Factory garrison access intel 10965 | -5/Upper Caves | Entered Zhirov 10965 | -5/Zhirov | Accompanied by 1 ally 10965 | -5/Zhirov | Discovered new exit (range 3) 10974 | -5/Zhirov | Identified exit to Proximity Caves 10999 | -5/Zhirov | Met Zhirov 11030 | -5/Zhirov | Learned location of Quarantine (-2) 11030 | -5/Zhirov | Learned location of Testing (-3) 11030 | -5/Zhirov | Learned location of Command (-1) 11062 | -5/Zhirov | Zhirov requested help retrieving the SGEMP Prototype 11093 | -5/Zhirov | Found Alien Artifact 11094 | -5/Zhirov | Identified Integrated Dissipator 11094 | -5/Zhirov | Installed Integrated Dissipator, increased core heat dissipation (+20) 11118 | -5/Zhirov | Found Alien Artifact 11269 | -5/Zhirov | Entered Proximity Caves 11269 | -4/Proximity Caves | Accompanied by 1 ally 11271 | -4/Proximity Caves | AWS/Gauss suddenly broke down 11271 | -4/Proximity Caves | Spotter reported a threat 11272 | -4/Proximity Caves | Spotter reported a threat 11449 | -4/Proximity Caves | Build established: Gunner 12233 | -4/Proximity Caves | Build established: Derelict-Gunner 12742 | -4/Proximity Caves | Lost 3 allies 12946 | -4/Proximity Caves | Lost 3 allies 13114 | -4/Proximity Caves | Discovered exit to Factory (range 15) 13307 | -4/Proximity Caves | Found Prototype Launcher 13307 | -4/Proximity Caves | Identified Rocket Array 14151 | -4/Proximity Caves | Entered Factory 14151 | -4/Factory | Accompanied by 2 allies 14151 | -4/Factory | Evolved 2 slots: Utility x2 14152 | -4/Factory | Identified exit to Upper Caves 14153 | -4/Factory | Loaded intel: 3 garrison access locations 14209 | -4/Factory | Joined by Warlord Chimera squad 14440 | -4/Factory | Allied Derelicts emerged from ambush trap array 14525 | -4/Factory | Lost 3 allies 14554 | -4/Factory | Joined by Warlord Ranger squad 14679 | -4/Factory | Entered Upper Caves 14679 | -4/Upper Caves | Accompanied by 2 allies 15010 | -4/Upper Caves | Attracted the attention of an 0b10 outpost 15053 | -4/Upper Caves | Build established: Tank 15181 | -4/Upper Caves | Discovered new exit (range 8) 15191 | -4/Upper Caves | Identified exit to Upper Caves 15192 | -4/Upper Caves | Entered another Upper Caves area 15192 | -4/Upper Caves | Accompanied by 3 allies 15197 | -4/Upper Caves | Spotted B-86 Titan 15201 | -4/Upper Caves | Encountered a Warlord checkpoint 15222 | -4/Upper Caves | Allies destroyed B-86 Titan 15243 | -4/Upper Caves | Lost 4 allies 15255 | -4/Upper Caves | Learned 8 Research zone layouts 15711 | -4/Upper Caves | Found Alien Artifact 15896 | -4/Upper Caves | Build established: Scavenger-Gunner 16323 | -4/Upper Caves | Attracted the attention of an 0b10 checkpoint 16389 | -4/Upper Caves | Discovered new exit (range 8) 16404 | -4/Upper Caves | Identified exit to Warlord 16406 | -4/Upper Caves | Entered Warlord 17238 | -4/Warlord | Met Warlord 17263 | -4/Warlord | Warlord's base attacked by MAIN.C 17613 | -4/Warlord | Warlord forces counterattacked 17745 | -4/Warlord | Found Prototype Energy Gun 17745 | -4/Warlord | Identified Vortex Rail 17754 | -4/Warlord | Found Prototype Energy Gun 17754 | -4/Warlord | Identified Vortex Rifle 17828 | -4/Warlord | Spotted Executioner 17834 | -4/Warlord | Destroyed Executioner 17834 | -4/Warlord | Spotted Executioner 17854 | -4/Warlord | Destroyed Executioner 17860 | -4/Warlord | Lost 6 allies 17883 | -4/Warlord | Found Prototype Device 17883 | -4/Warlord | Identified Adv. Kinecellerator 17916 | -4/Warlord | Spotted Striker 17938 | -4/Warlord | Warlord base infiltrated, sounded retreat 17982 | -4/Warlord | Released all parts (8) 17985 | -4/Warlord | Core integrity fell below 50% 17985 | -4/Warlord | Identified Transdimensional Reconstructor 17985 | -4/Warlord | Warped through subspace 17986 | -4/Warlord | Spotted Striker 17994 | -4/Warlord | Core integrity fell below 20% 17994 | -4/Warlord | Spotted Executioner 17997 | -4/Warlord | Destroyed by Dirty Bomb Trap Last Messages --------------- Acquired Alien Artifact. Slug penetrates Striker. The unstable cave ceiling collapses. Slug penetrates Earth. Penetrated by Slug. The unstable cave ceiling collapses. Acquired Alien Artifact. Identified Transdimensional Reconstructor. Warped through subspace. E-15 Imp destroyed. Acquired 78 matter. Acquired 5 matter. Acquired 44 matter. Knocked back. System corrupted: Heat flow error (+122). E-15 Imp triggered Dirty Bomb Trap. An explosion rips through the floor. E-15 Imp destroyed. Dirty Bomb Trap short circuited. An explosion rips through the floor. Map ----- +----------------------------------------------------+ | ???????????????????????????????????????? | | ???????????????????????????????????????? | | ???????????????????????????????????????? | | ???????????????????????????????????????? | | ???????????????????????????????????????? | | ???????????????????????????????????????? | | ???????????????????????????????????????? | | ???????????????????????????????????????? | | ???????????????????????????????????????? | | ???????????????????????????????????????? | | ????""?????????????????????????????????? | | ???#""#????????????????????????????????? | | ?#?#""#??????????????????????????????##? | | # #""#####????????????????????##??? #? | | "" "################????==##? #?? | | ""=% /"" /""!% "=#= =#####!%!# #??? | | "" [=!%%![%%!![[!=!%#!;#%==! #???? | | =! % ![=*]!%!=! ==#bi!!=*[p=[!= #???? | | [!% %*=%/*[!!%!!%[%/%%%[%!!p*## #??? | | %=%=*=! %%%%%[%%=!*%%/b%%%[%[%!;#??????? | | = !%[% %%[%==%%%%=*!#*=l[%p# ##??????? | | ! %[[=== !!=!=%==!%[=##*==[ ; #?? #??? | | % [!=!*!!= !="!=[[##[ ; #?? ??? | | #% "" =!=!*""########## ; #??? ??? | | ### "" ""####?????????#;;/ ; #??? ??? | | ???#""####?????????????# @ #??? ???? | | ???#""#??????????????# #??? ???? | | ????""???????????????#; ; #??? ???? | | ?????????????????????#; ;###??? #???? | | ????????????????????# ; ;#????? #???? | | ????????????????????# ; ;; ????? #???? | | ????????????????????##; ; #????? ##??? | | ?????????????????????## ;##???## #??? | | ????????????????????## ##??## #??? | | ????????????????????# ##?# #??? | | ????????????????????# ## ### #??? | | ???????????????????# #?## ## #??? | | ?????????????????? ???## ## #??? | | ????????????????? ????# ## ##??? | | ???????????????# ## ????## #???? | | ???????????????####?#??????### ##???? | | ?????????????????????????????######????? | | ???????????????????????????????????????? | | ???????????????????????????????????????? | | ???????????????????????????????????????? | | ???????????????????????????????????????? | | ???????????????????????????????????????? | | ???????????????????????????????????????? | | ???????????????????????????????????????? | | ###????????????????????????????????????? | +----------------------------------------------------+ Best States ------------- Heat Dissipation 63 Energy Generation 23 Energy Capacity 315 Matter Stores 300 Matter Capacity 300 Sight Range 16 Terrain Scan Density 10 Armor Coverage 600 Weapon Shielding 90 Evasion (%) 55 Targeting Accuracy 14 Target Analysis 5 Recoil Reduction 4 Matter Filtering 30 Particle Charging 30 Kinecelleration 50 Item Schematics ----------------- Recalibrator | -6/Factory | Hacked Plasma Rifle | -6/Zion | Archive Imp. Recalibrator | -6/Zion | Archive Proton Cannon | -6/Zion | Archive Imp. Remote Datajack | -6/Zion | Archive Lrn. Missile Launcher | -6/Zion | Archive Neutrino Core | -6/Zion | Archive Imp. Medium Treads | -6/Zion | Archive Antimatter Reactor | -6/Zion | Archive Lgt. Antimatter Reactor | -6/Zion | Archive Flexi-carbon Leg | -6/Zion | Archive Field Propulsion Drive | -6/Zion | Archive Energy Well | -6/Zion | Archive Thermal Shield | -6/Zion | Archive Imp. Launcher Guidance Computer | -6/Zion | Archive Assault Drone Bay | -5/Zhirov | Free Exp. Heat Sink | -5/Zhirov | Free Exp. Optical Array | -5/Zhirov | Free Imp. Arc Thrower | -5/Zhirov | Free Robot Schematics ------------------ M-22 Extractor | -6/Zion | Archive B-48 Gladiator | -6/Zion | Archive A-15 Conveyor | -6/Zion | Archive Fabricated ------------ Recalibrator | x2 | -5/Factory B-48 Gladiator | x3 | -5/Factory Alien Tech Used ----------------- Integrated Dissipator Transdimensional Reconstructor Achievements -------------- None Challenges ------------ None Game ------ Seed NovaPulseCannon Manual? 0 Play Time 02:14:20 Cumulative 73.3 hours Start 2024.10.11 @ 17:56:05 End 2024.10.11 @ 20:38:05 Sessions 1 Manual Loads 0 Difficulty Rogue Special Mode None Game No. 75 Rogue 75 Adventurer 0 Explorer 0 Win Type - Total 2 Types 1/0/0/1/0/0/0/0/0 Lore% 51 Gallery% 43 Achievement% 41 Wizard Run 0 Options --------- Layout 1 ASCII 0 Keyboard 1 Movement Numpad Keybinds 0 Fullscreen 2 Font 20/SmallcapsGlow Map View 54x42 Zoom Use 0% Tactical HUD 0 Map Filters NONE Filters NONE Steam 1 RUN: 8ea621c9-9ab8-4354-a087-da06d8cb77f5